Cogmind - Beta 16 @@@ ROGUE MODE // 2025.10.24 @ 23:46:40 Player: Pogmind Result: Destroyed by 0U-TRR(R) with Subdweller Machine Gun Performance ------------- Evolutions (0) 0 Regions Visited (2) 400 Robots Destroyed (38) 190 Value Destroyed (789) 789 Prototype IDs (0) 0 Alien Tech Used (0) 0 Bonus (0) 0 TOTAL SCORE: 1379 Bonus ------- None Cogmind --------- Core Integrity 0/250 Matter 240/300 Energy 100/200 System Corruption 0% Temperature Cool (0) Movement Treading (160) Location -10/Subcaves Parts ------- > --- POWER (1) -------- Subdweller Power Source > --- PROPULSION (2) --- Light Treads Light Treads > --- UTILITY (2) ------ Large Storage Unit Seismic Detector > --- WEAPON (2) ------- Subdweller Laser Grenade Launcher > --- INVENTORY (15) --- Light Treads Light Treads Compact Wheel High-capacity Matter Pod (200) Seismic Detector Subdweller Laser Assault Rifle Assault Rifle Assault Rifle Assault Rifle Assault Rifle Light Cannon Subdweller Shrapnel Launcher Peak State ------------ > --- POWER ------------ Subdweller Power Source > --- PROPULSION ------- Light Treads Light Treads > --- UTILITY ---------- Large Storage Unit Seismic Detector > --- WEAPON ----------- Subdweller Laser Grenade Launcher > --- INVENTORY -------- Light Treads Light Treads Compact Wheel High-capacity Matter Pod Seismic Detector Subdweller Laser Assault Rifle Assault Rifle Assault Rifle Assault Rifle Assault Rifle Light Cannon Subdweller Shrapnel Launcher [Rating: 10] Favorites ----------- Power Ion Engine Engine Ion Engine Propulsion Light Treads Treads Light Treads Wheel Compact Wheel Utility Seismic Detector Device Seismic Detector Storage Large Storage Unit Weapon Assault Rifle Energy Gun Subdweller Laser Energy Cannon Subdweller Beam Cannon Ballistic Gun Assault Rifle Ballistic Cannon Light Cannon Launcher Grenade Launcher Build | -11 -10 -10 ------- Run | Yrd Mat Sub Slots Evolved . | . . . Power . | . . . Propulsion . | . . . Utility . | . . . Weapon . | . . . Parts Attached 20 | 7 8 5 Power 4 | 1 1 2 Engine 4 | 1 1 2 Core . | . . . Reactor . | . . . Propulsion 4 | 2 2 . Treads 3 | 2 1 . Leg . | . . . Wheel 1 | . 1 . Hover . | . . . Flight . | . . . Utility 4 | 2 2 . Device 1 | 1 . . Storage 3 | 1 2 . Processor . | . . . Hackware . | . . . Protection . | . . . Artifact . | . . . Weapon 8 | 2 3 3 Energy Gun 1 | . . 1 Energy Cannon 1 | . . 1 Ballistic Gun 4 | 2 2 . Ballistic Cannon 1 | . . 1 Launcher 1 | . 1 . Special Weapon . | . . . Impact Weapon . | . . . Slashing Weapon . | . . . Piercing Weapon . | . . . Special Melee Weapon . | . . . Unidentified Prototypes . | . . . Parts Lost 3 | . . 3 Power 2 | . . 2 Propulsion 1 | . . 1 Utility . | . . . Weapon . | . . . Highest Loss Streak 2 | . . 2 To Critical Strikes . | . . . Average Backups 12 | 1 12 14 Power . | . 1 . Propulsion 3 | . 2 4 Utility 1 | . 1 2 Weapon 6 | . 6 7 Tool/Special . | . . . Unused Backups 12 | . 1 11 Power . | . . . Propulsion 2 | . . 2 Utility 3 | . 1 2 Weapon 7 | . . 7 Tool/Special . | . . . Average Slot Usage (%) 99 | . 99 100 Engine 14 | . 14 14 Treads 27 | . 27 28 Device 14 | . 14 14 Storage 14 | . 14 14 Energy Gun 1 | . . 4 Energy Cannon 1 | . . 5 Ballistic Gun 20 | . 27 3 Launcher 3 | . . 12 Peak Build Rating 10 | 7 8 10 Average Rating 8 | 5 7 8 On Entrance 5 | . 7 8 Avg Prop Armor Cover (%) . | . . . Naked Turns . | . . . Heaviest Build 37 | 11 30 37 Greatest Support 40 | 40 40 40 Greatest Overweight (x) 1 | . 1 . Average Overweight (x) . | . . . Largest Inventory Capacity 15 | 8 15 15 Average Capacity 14 | 7 14 15 Most Carried 15 | 3 15 15 Average Carried 12 | 1 12 14 Final Capacity 15 | 8 15 15 Final Carried 15 | 3 15 13 Class Distribution -------------------- 100% | Mutant Dominant Class ---------------- Mutant | -10/Materials Mutant | -10/Subcaves Resources | -11 -10 -10 ----------- Run | Yrd Mat Sub Matter Collected 1370 | 282 778 310 Remotely . | . . . Salvage Created 982 | 110 690 182 Parts 68 | 5 47 16 Haulers Intercepted 2 | . 2 . Recyclers Shooed . | . . . Parts Field Recycled . | . . . Retrieved Matter . | . . . Parts Self-Destructed 11 | . . 11 Prevented . | . . . Parts Restored . | . . . Kills | -11 -10 -10 ------- Run | Yrd Mat Sub Combat Hostiles Destroyed 27 | . 16 11 Guns 7 | . 7 . AOE 20 | . 9 11 Classes Destroyed 8 | 2 5 1 Worker 1 | . 1 . Tunneler 2 | 2 . . Hauler 2 | . 2 . Recycler 3 | 1 2 . Watcher 3 | . 3 . Swarmer 12 | . 9 3 Grunt 7 | . 7 . Subdweller 8 | . . 8 Best Kill Streak 6 | 3 6 4 Combat Bots Only 6 | . 6 4 Max Kills in Single Turn 5 | 1 5 2 Gunslinging . | . . . Exploded 5 | . 5 2 Melee . | . . . Uniques/NPCs Destroyed . | . . . Combat | -11 -10 -10 -------- Run | Yrd Mat Sub Hostile Shots Fired 75 | . 42 33 Missed 18 | . 10 8 Hits 57 | . 32 25 Projectile 57 | . 32 25 Critical Strikes 1 | . . 1 Damage Taken 1088 | . 483 605 Core 260 | . 112 148 Absorbed by Shields . | . . . Regen/Repaired (Parts) 127 | . 127 . Core Remaining (%) 100 | 100 . . Volleys Fired 103 | 6 51 46 Largest 2 | 2 2 2 Hottest 110 | 40 40 110 Shots Fired 154 | 12 95 47 Gun 110 | 12 88 10 Cannon 13 | . . 13 Launcher 31 | . 7 24 Special . | . . . Kinetic 107 | 12 88 7 Thermal 16 | . . 16 Explosive 31 | . 7 24 Electromagnetic . | . . . Robot Hit Streak 14 | 5 8 14 Robot Miss Streak 5 | 4 5 1 Penetration Max . | . . . Secondary Targets . | . . . Shots Hit Robots 79 | 6 55 18 Core Hits 60 | 5 36 19 Critical Kills . | . . . Critical Parts Destroyed 1 | . 1 . Critical Strikes 1 | . 1 . Destroy 1 | . 1 . Melee Attacks . | . . . Impact . | . . . Slashing . | . . . Piercing . | . . . Sneak Attacks . | . . . Combat Hostiles . | . . . Follow-up Attacks . | . . . Damage Inflicted 2714 | 64 1235 1415 Guns 762 | 64 657 41 Cannons 19 | . . 19 Explosions 1880 | . 525 1355 Melee . | . . . Ramming 53 | . 53 . Kinetic 740 | 64 657 19 Thermal 41 | . . 41 Explosive 1880 | . 525 1355 Electromagnetic . | . . . Impact . | . . . Slashing . | . . . Piercing . | . . . Highest Corruption . | . . . Average Corruption . | . . . Corruption Purged . | . . . Corruption Blocked . | . . . Overload Shots . | . . . Overflow Damage 25 | . 25 . Projectiles . | . . . Explosions 25 | . 25 . Melee . | . . . Knockbacks . | . . . Impact . | . . . Kinetic . | . . . Secondary . | . . . Self-Inflicted Damage 286 | . 120 166 Shots 11 | . 5 6 Rammed 7 | . 7 . Targets Rammed 7 | . 7 . Kicked . | . . . Crushed . | . . . Highest Temperature 6 | . 2 6 Average Temperature 2 | . 2 4 Received Heat Transfer 207 | . 126 81 Siege Activations . | . . . Martial Activations . | . . . Shielding Activations . | . . . Robots Disrupted . | . . . Combat Hostiles . | . . . Robots Corrupted . | . . . Combat Hostiles . | . . . Parts Fried . | . . . Impact Corruptions . | . . . Robots Melted . | . . . Combat Hostiles . | . . . Parts Melted . | . . . Heat Transferred 50 | . . 50 Parts Sabotaged . | . . . Parts Stolen . | . . . Parts Stripped . | . . . Power Chain Reactions . | . . . Alert | -11 -10 -10 ------- Run | Yrd Mat Sub Maximum Alert Level . | . . . Low Security (%) 100 | 100 100 . Level 1 . | . . . Level 2 . | . . . Level 3 . | . . . Level 4 . | . . . Level 5 . | . . . High Security . | . . . Max Security . | . . . Peak Influence 157 | 10 157 . Initial . | . . . Average 39 | . 41 . Influence Increases 668 | 15 583 70 Destroy 0b10 Robot/C 380 | . 320 60 Destroy 0b10 Robot/NC 55 | 15 40 . Destroy Leader 90 | . 80 10 Successful Hack 29 | . 29 . Select Force Hacks 60 | . 60 . Destroy Structure 24 | . 24 . Lose Combat Pursuer 30 | . 30 . Influence Decreases 668 | 15 570 83 Entered New Map 7 | . . 7 Time Decay 661 | 15 570 76 Squads Dispatched 2 | . 2 . Investigation 2 | . 2 . Extermination . | . . . Reinforcement . | . . . Assault . | . . . Garrison . | . . . Intercept . | . . . Searches Triggered . | . . . Construction Impeded . | . . . Haulers Reinforced . | . . . Active Scanning Responses . | . . . Cargo Convoy Interrupts . | . . . Stealth | -11 -10 -10 --------- Run | Yrd Mat Sub Distress Signals 1 | . 1 . Communications Jammed . | . . . Distress Signals . | . . . Times Spotted 40 | . 27 13 Peak Tracking Total 7 | . 7 3 Tactical Retreats 2 | . 2 . Traps | -11 -10 -10 ------- Run | Yrd Mat Sub Traps Triggered 3 | . 3 . Indirectly . | . . . Trap Hack Attempts . | . . . Triggered . | . . . Disarmed . | . . . Reprogrammed . | . . . Reused . | . . . Traps Extracted . | . . . Installed . | . . . Triggered . | . . . Machines | -11 -10 -10 ---------- Run | Yrd Mat Sub Machines Disabled . | . . . Max in Single Turn . | . . . Machines Repaired . | . . . Machines Dismantled . | . . . Machines Sabotaged . | . . . Overloaded Fab Kills . | . . . Hacking | -11 -10 -10 --------- Run | Yrd Mat Sub Machines Accessed 11 | . 11 . Terminals 8 | . 8 . Fabricators . | . . . Repair Stations 1 | . 1 . Recycling Units 2 | . 2 . Scanalyzers . | . . . Garrison Access . | . . . Total Hacks 26 | . 26 . Successful 17 | . 17 . Failed 8 | . 8 . Catastrophic . | . . . Database Lockouts 1 | . 1 . Manual 20 | . 20 . Terminals 22 | . 22 . Fabricators . | . . . Repair Stations 2 | . 2 . Recycling Units 2 | . 2 . Scanalyzers . | . . . Garrison Access . | . . . Terminal Hacks 4 | . 4 . Part Schematic 1 | . 1 . Robot Analysis 1 | . 1 . Locate Traps 1 | . 1 . Hauler Manifests 1 | . 1 . Fabricator Hacks . | . . . Repair Station Hacks 2 | . 2 . Scan Component 1 | . 1 . Repair 1 | . 1 . Recycling Unit Hacks . | . . . Scanalyzer . | . . . Garrison Access Hacks . | . . . Unauthorized Hacks 11 | . 11 . Terminals 9 | . 9 . Botnet 3 | . 3 . Operators 1 | . 1 . Skim 5 | . 5 . Fabricators . | . . . Repair Stations . | . . . Recycling Units 2 | . 2 . Tunnel 2 | . 2 . Scanalyzers . | . . . Garrison Access . | . . . Data Cores Recovered . | . . . Used . | . . . Hacking Detections 8 | . 8 . Full Trace Events . | . . . Feedback Events . | . . . Feedback Blocked . | . . . Robot Schematics Acquired . | . . . Robots Built . | . . . Authchips . | . . . Time . | . . . Total Robot Build Rating . | . . . Part Schematics Acquired 1 | . 1 . Parts Built . | . . . Authchips . | . . . Time . | . . . Total Part Build Rating . | . . . Part Studies Acquired . | . . . Parts Repaired 1 | . 1 . Time 26 | . 26 . Parts Recycled . | . . . Recycled Matter . | . . . Retrieved Matter . | . . . Retrieved Components . | . . . Parts Scanalyzed . | . . . Part Schematics Acquired . | . . . Parts Damaged . | . . . Bothacking | -11 -10 -10 ------------ Run | Yrd Mat Sub Used RIF Installer . | . . . Robots Hacked . | . . . Non-combat . | . . . Combat . | . . . Robot Hacks Applied . | . . . Relay Couplers Released . | . . . Fabnet Peak Effective % . | . . . Robots Rewired . | . . . Allies Hacked . | . . . Hacks Repelled . | . . . Allies | -11 -10 -10 -------- Run | Yrd Mat Sub Total Allies . | . . . Largest Group . | . . . Highest-Rated Group . | . . . Highest-Rated Ally . | . . . Total Orders . | . . . Ally Attacks . | . . . Total Damage . | . . . Kills . | . . . Allies Corrupted . | . . . Allies Melted . | . . . Intel | -11 -10 -10 ------- Run | Yrd Mat Sub Active Infowar (turns) 3579 | 55 2438 1086 Seismic 3579 | 55 2438 1086 Robot Analysis Total 1 | . 1 . Derelict Logs Recovered 1 | . . 1 Drone Launches . | . . . Drone Recoveries . | . . . Exploration | -11 -10 -10 ------------- Run | Yrd Mat Sub Turns Passed 3671 | 143 2442 1086 Spaces Moved 1649 | 74 1020 555 Core 3 | 3 . . Treads 1644 | 71 1018 555 Legs . | . . . Wheels 2 | . 2 . Hover . | . . . Flight . | . . . Fastest Speed 50 | 50 115 160 Average Speed 159 | 155 159 160 Slowest Speed 160 | 160 160 160 Overloaded Moves . | . . . Propulsion Burnouts . | . . . Robots Hopped . | . . . Potential Cave-ins . | . . . Cave-ins Triggered . | . . . Exploration Rate (%) 44 | 5 98 31 Regions Visited 2 Branch Regions 1 Pre-discovered Areas 4 | . 4 . Known Exits Taken 1 | . 1 . Unknown Exits Taken 1 | 1 . . Scrap Searched . | . . . Spaces Dug 17 | . 3 14 Terrain Destroyed 156 | . 23 133 Melee . | . . . Projectile 1 | . . 1 AOE 155 | . 23 132 Terrain Rammed . | . . . Walls Destroyed . | . . . Machines Disabled . | . . . Actions | -11 -10 -10 --------- Run | Yrd Mat Sub Total 2522 | 89 1728 705 Wait 699 | . 616 83 Move 1647 | 73 1019 555 Hop . | . . . Pick Up 20 | 3 11 6 Fast Attach 12 | 7 5 . Attach 5 | . 1 4 Detach 1 | . 1 . Swap 19 | . 13 6 Drop 9 | . 4 5 Fire 103 | 6 51 46 Melee . | . . . Ram . | . . . Kick . | . . . Crush 7 | . 7 . Escape Stasis . | . . . Rewire . | . . . Trap . | . . . Miscellaneous . | . . . Route ------- -11/Scrapyard -10/Materials (discovered 5 exits: *Mat x3 / *Min / *Sub) -10/Subcaves (discovered 1 exit: [*Mat]) History --------- Turn | Location | Event 6 | -11/Scrapyard | Discovered new exit (range 16) 144 | -11/Scrapyard | Entered Materials 329 | -10/Materials | Build established: Mutant 634 | -10/Materials | Central database locked down 660 | -10/Materials | Discovered new exit (range 4) 988 | -10/Materials | Discovered new exit (range 8) 1437 | -10/Materials | Discovered new exit (range 15) 1688 | -10/Materials | Identified exit to Subcaves 1719 | -10/Materials | Learned Storage trap positions 1741 | -10/Materials | Learned Storage trap positions 1757 | -10/Materials | Learned location of Subcaves (-10) 1760 | -10/Materials | Learned 4 Subcaves zone layouts 1761 | -10/Materials | Learned location of Recycling (-8) 1773 | -10/Materials | Identified exit to Materials 1773 | -10/Materials | Identified exit to Mines 2449 | -10/Materials | Repaired Lgt. Treads 2586 | -10/Materials | Entered Subcaves 2587 | -10/Subcaves | Approached by a straggling Scientist 2786 | -10/Subcaves | Core integrity fell below 50% 2885 | -10/Subcaves | Shifting Twisted Machinery released Sub. Shrapnel Launcher 2897 | -10/Subcaves | Shifting Twisted Machinery released Battle Rifle 3500 | -10/Subcaves | Learned location of 1 exit from Materials 3524 | -10/Subcaves | Discovered new exit (range 6) 3609 | -10/Subcaves | A swath of the cavern ceiling suddenly collapsed 3665 | -10/Subcaves | Core integrity fell below 20% 3672 | -10/Subcaves | Destroyed by 0U-TRR(R) with Subdweller Machine Gun Last Messages --------------- 03524_ EXIT=FOUND 03563_ 6L-R5T(R) destroyed. 03577_ Acquired 19 matter. 03581_ Acquired 1 matter. 03601_ Subatomizers dissect the Disposable Heat Sink. 03609_ Multitool crushed. 03609_ 59 Matter crushed. 03609_ Sub. Power Source crushed. 03609_ Sub. Optics crushed. 03609_ 41 Matter crushed. 03609_ Wheel crushed. A swath of the cavern ceiling suddenly collapses. 03661_ 0U-TRR(R): "ARGHSUB!" 03661_ Lgt. Treads destroyed. 03664_ DC-MPV(R) destroyed. 03665_ The unstable cave ceiling collapses. 03666_ Subatomizers dissect the Sub. Machine Gun. 03666_ YX-1JQ(R) destroyed. 03666_ Ion Engine destroyed. 03671_ 0U-TRR(R) affixes Scrap Shield Fragment to Scrap Shield. Map ----- +----------------------------------------------------+ | #???????????# ## #? % #?????????????????? | | ##????????#### ## ## ??????????????????? | | ##????????# #?????????????????????? | | # #?????????# % #?????????????????????? | | ##???######## % ##????????????????????? | | # ##### & ####?????????????????? | | ## % #?????????????????? | | ?# # #?????????????????? | | ?##### < ## ##### ####?????????????????? | | ?????# ### #???## #??###???????????????? | | ????# #?# #???# "### ##??????????????? | | ???# #?# #??# """"" #??????????????? | | ???# #?# ## #?# ### #????????????????? | | ??# #? #? #?# #"""#"##????????????????? | | ??# # ### ? #?# ###""###????????????????? | | ??## ### ?# ? ?## ### ###?????????????????? | | ???# ??? ? ? ?## ### ###?????????????????? | | ???# ??? ? ?# #?##!##?????????????????? | | ??? ??? ? ^?## ####"# ????????????????? | | ??? ??? ?? ???###;;# ### ???????????????? | | ??## ??? ?? #?????## #;"##??? ??????????????? | | ???# ??? ??#?????## # #???? ?????????????? | | ???? ??? ????????????# "# ##"#??#????????????? | | ?????????????????????## ##???????????????? | | ?????????????????????# &%[R #"#?????????????? | | ??????????????????????# @ #?????????????? | | ??????????????????????# #?????????????? | | ??????????????????????## ###?????????????? | | ??????????????????????? # # #??????????????? | | ?????????????????????? #### #????????????????? | | ????????????????????? ? ???? ???????????????? | | ????????????????????? ? ????? ?????????????? | | ???????????????????? ?? #????? #????????????? | | ??????????????????? ?? ##????? #????????????? | | ?????????????????? ??? ???????# ? #???????????? | | ?????????????????? ?? ????????# ? ????????????? | | ????????????????? ??? #????????? ??????????????? | | ????????????????## ???#?????????? ??????????????? | | ??????????????????#???????????????? ?????????????? | | ?????????????????????????????????????????????????? | | ?????????????????????????????????????????????????? | | ?????????????????????????????????????????????????? | | ?????????????????????????????????????????????????? | | ?????????????????????????????????????????????????? | | ?????????????????????????????????????????????????? | | ?????????????????????????????????????????????????? | | ?????????????????????????????????????????????????? | | ?????????????????????????????????????????????????? | | ?????????????????????????????????????????????????? | | ?????????????????????????????????????????????????? | +----------------------------------------------------+ Best States ------------- Heat Dissipation 25 Energy Generation 15 Energy Capacity 250 Matter Stores 300 Matter Capacity 300 Sight Range 16 Terrain Scan Density 10 Evasion (%) 40 Recoil Reduction 2 Item Schematics ----------------- Seismic Detector | -10/Materials | Hacked Robot Schematics ------------------ None Fabricated ------------ Nothing Repaired ---------- Lgt. Treads | 9% | -10/Materials Studied --------- None Alien Tech Used ----------------- None Achievements -------------- None Challenges ------------ None Game ------ Seed HypervelocityWeldingBuckler Manual? 0 Play Time 00:19:57 Cumulative 875.7 hours Start 2025.10.24 @ 23:10:10 End 2025.10.24 @ 23:46:40 Sessions 3 Manual Loads 0 Difficulty Rogue Special Mode None Game No. 105 Rogue 87 Adventurer 5 Explorer 13 Win Type - Total 38 Types 7/9/10/0/5/1/4/0/1/1 Lore% 85 Gallery% 92 Achievement% 59 Wizard Run 0 Options --------- Layout 0 ASCII 0 Keyboard 1 Movement Numpad Keybinds 0 Fullscreen 1 Font 24/Smallcaps Map View 130x56 Zoom Use 0% Tactical HUD 1 Map Filters NONE Filters NONE Steam 1 RUN: 91207c82-0cf0-4604-8c76-66790d92330d